bitfinex-derivatives/quotes_BTCF0:USTF0_20250907
["timestamp","ask_amount","ask_price","bid_price","bid_amount"]
[1757275517812,1.4455916,111370.0,111360.0,0.14880773]
[1757275520012,1.4455916,111370.0,111360.0,0.34646625]
[1757275520511,0.6302716,111370.0,111360.0,0.34646625]
[1757275520713,1.4454316,111370.0,111360.0,0.34646625]
[1757275521914,0.6302716,111370.0,111360.0,0.34646625]
[1757275522113,1.4454316,111370.0,111360.0,0.34646625]
[1757275522315,0.6302716,111370.0,111360.0,0.34646625]
[1757275522615,1.4453916,111370.0,111360.0,0.34646625]
[1757275523313,0.6302716,111370.0,111360.0,0.34646625]
[1757275523518,1.24773308,111370.0,111360.0,0.54412477]
[1757275523718,1.24773308,111370.0,111360.0,0.43112704]
[1757275524014,1.24773308,111370.0,111360.0,0.68112704]
[1757275524214,0.43261308,111370.0,111360.0,0.68112704]
[1757275524409,1.24773308,111370.0,111360.0,0.68112704]
[1757275524715,0.43261308,111370.0,111360.0,0.79393861]
[1757275525214,0.31130897,111370.0,111360.0,0.79393861]
[1757275525715,0.31130897,111370.0,111360.0,0.77091954]
[1757275525910,0.31130897,111370.0,111360.0,0.68112704]
[1757275526311,0.31130897,111370.0,111360.0,0.77091954]
[1757275527419,0.22869589,111370.0,111360.0,0.77091954]
[1757275528620,0.25811357,111370.0,111360.0,0.77091954]
[1757275529019,0.22869589,111370.0,111360.0,0.88359094]
[1757275529820,0.25774113,111370.0,111360.0,0.79379844]
[1757275531119,0.25774113,111370.0,111360.0,0.3984814]
[1757275531420,0.25774113,111370.0,111360.0,0.79379844]
[1757275533723,0.25774113,111370.0,111360.0,0.3984814]
[1757275533927,0.25774113,111370.0,111360.0,0.79379844]
[1757275537524,0.03604,111440.0,111430.0,0.02316]
[1757275537729,0.39369852,111440.0,111430.0,0.22081852]
[1757275538019,0.74135704,111440.0,111430.0,0.02316]
[1757275538223,0.03621,111430.0,111420.0,0.00013484]
[1757275538414,0.54386852,111430.0,111420.0,0.00013484]
[1757275538825,0.57377512,111430.0,111420.0,0.00013484]
[1757275539125,0.64531781,111430.0,111420.0,0.00013484]
[1757275540228,0.57377512,111430.0,111420.0,0.00013484]
[1757275543227,0.01385,111400.0,111390.0,0.0778231]
[1757275543415,0.36621,111400.0,111390.0,0.29864162]
[1757275549030,0.36621,111400.0,111390.0,0.23431852]
[1757275551030,0.56386852,111400.0,111390.0,0.08721552]
[1757275551234,0.56386852,111400.0,111390.0,0.28487404]
[1757275557032,1.82780704,111400.0,111390.0,0.06405552]
[1757275557233,0.03621,111390.0,111380.0,0.28497404]
[1757275557433,0.56386852,111390.0,111380.0,0.28487404]
[1757275558628,0.36621,111390.0,111380.0,0.28487404]
[1757275558828,0.56386852,111390.0,111380.0,0.28487404]
[1757275559036,0.56386852,111390.0,111380.0,0.22081852]
[1757275560135,0.36621,111390.0,111380.0,0.22081852]
[1757275560638,0.56386852,111390.0,111380.0,0.22081852]
[1757275561337,0.56386852,111390.0,111380.0,0.06419393]
[1757275561535,0.56386852,111390.0,111380.0,0.26185245]
[1757275561837,0.56386852,111390.0,111380.0,0.29797896]
[1757275562034,0.36621,111390.0,111380.0,0.29797896]
[1757275562236,0.56386852,111390.0,111380.0,0.29797896]
[1757275563241,0.36621,111390.0,111380.0,0.23378503]
[1757275563440,0.56386852,111390.0,111380.0,0.23378503]
[1757275565546,0.56386852,111390.0,111380.0,0.43144355]
[1757275566243,0.56386852,111390.0,111380.0,0.23378503]
[1757275566943,0.36621,111390.0,111380.0,0.23378503]
[1757275567144,0.56386852,111390.0,111380.0,0.31420158]
[1757275568747,0.36621,111390.0,111380.0,0.31420158]
[1757275568947,0.56386852,111390.0,111380.0,0.31420158]
[1757275570048,0.56386852,111390.0,111380.0,0.23378503]
[1757275570249,0.56386852,111390.0,111380.0,0.23380042]
[1757275571249,0.56386852,111390.0,111380.0,0.31421697]
[1757275571646,0.56386852,111390.0,111380.0,0.51187549]
[1757275571947,0.36621,111390.0,111380.0,0.51187549]
[1757275572145,1.37942852,111390.0,111380.0,0.51187549]
[1757275572854,0.36621,111390.0,111380.0,0.51187549]
[1757275573052,0.36621,111390.0,111380.0,0.52533549]
[1757275573240,0.35236,111390.0,111380.0,0.52533549]
[1757275574353,0.02236,111390.0,111380.0,0.77533549]
[1757275574557,0.0215,111400.0,111390.0,0.03668]
[1757275574747,0.3913,111400.0,111390.0,0.44497894]
[1757275575054,0.3913,111400.0,111390.0,0.24732042]
[1757275576353,0.3913,111400.0,111390.0,0.32773697]
[1757275577856,0.3913,111400.0,111390.0,0.35999182]
[1757275578454,0.3913,111400.0,111390.0,0.35983183]
[1757275583059,0.3913,111400.0,111390.0,0.35983956]
[1757275583359,0.3813,111400.0,111390.0,0.35983956]
[1757275591860,0.3813,111400.0,111390.0,0.34684993]
[1757275600866,0.3813,111400.0,111390.0,0.23417853]
[1757275602168,0.26003371,111400.0,111390.0,0.23417853]
[1757275602471,0.28225371,111400.0,111390.0,0.23417853]
[1757275604671,0.28225371,111400.0,111390.0,0.34681863]
[1757275612082,0.28225371,111400.0,111390.0,0.23417853]
[1757275613977,0.40222,111400.0,111390.0,0.23417853]
[1757275616390,0.84971853,111400.0,111390.0,0.11269498]
[1757275616680,0.65222,111400.0,111390.0,0.08050477]
[1757275617280,0.65222,111400.0,111390.0,0.10259477]
[1757275617481,0.65222,111400.0,111390.0,0.21958853]
[1757275617786,0.65222,111400.0,111390.0,0.23297853]
[1757275620083,0.65222,111400.0,111390.0,0.21958853]
[1757275620488,0.65222,111400.0,111390.0,0.02209]
[1757275620889,0.65222,111400.0,111390.0,0.10259477]
[1757275621691,0.84971853,111400.0,111390.0,0.08050477]
[1757275622083,1.66459853,111400.0,111390.0,0.08050477]
[1757275623088,1.66459853,111400.0,111380.0,0.19329975]
[1757275623089,0.02908,111390.0,111380.0,0.19329975]
[1757275623290,0.37908,111390.0,111380.0,0.08050477]
[1757275623491,0.37908,111390.0,111380.0,0.10182477]
[1757275624089,0.37908,111390.0,111380.0,0.02132]
[1757275624286,0.00692,111380.0,111370.0,0.2916033]
[1757275624593,0.02812,111380.0,111370.0,0.10182477]
[1757275626193,0.02812,111380.0,111370.0,0.2993233]
[1757275629096,0.02812,111380.0,111370.0,0.02132]
[1757275630001,0.02812,111380.0,111370.0,0.13401498]
[1757275632397,0.02812,111380.0,111370.0,0.02132]
[1757275633297,0.22561853,111380.0,111360.0,0.12629498]
[1757275633494,0.07822,111380.0,111370.0,0.08033229]
[1757275633688,0.38812,111380.0,111360.0,0.08043229]
[1757275633890,0.03405,111370.0,111360.0,0.08043229]
[1757275634085,0.36405,111370.0,111360.0,0.08033229]
[1757275634592,0.36405,111370.0,111360.0,0.08533229]
[1757275634901,0.56154853,111370.0,111360.0,0.08533229]
[1757275635098,0.56154853,111370.0,111360.0,0.005]
[1757275635896,0.56154853,111370.0,111360.0,0.006]
[1757275636203,0.56154853,111370.0,111360.0,0.011]
[1757275636602,0.56154853,111370.0,111360.0,0.005]
[1757275636895,0.56154853,111370.0,111350.0,0.09392229]
[1757275637104,0.56164853,111370.0,111350.0,0.09392229]
[1757275637898,0.36415,111370.0,111360.0,0.02132]
[1757275638203,0.59154853,111370.0,111360.0,0.02132]
[1757275638404,0.59170295,111370.0,111360.0,0.21897295]
[1757275640811,0.37170295,111370.0,111360.0,0.21897295]
[1757275641107,0.60170295,111370.0,111360.0,0.21897295]
[1757275643210,0.60170295,111370.0,111360.0,0.02132]
[1757275643510,0.60170295,111370.0,111360.0,0.21897295]
[1757275645909,0.59170295,111370.0,111360.0,0.21897295]
[1757275647409,0.59170295,111370.0,111360.0,0.02132]
[1757275647610,0.59170295,111370.0,111360.0,0.21897295]
[1757275653722,0.59170295,111370.0,111360.0,0.02132]
[1757275654017,0.59170295,111370.0,111350.0,0.29157524]
[1757275654222,0.39415,111370.0,111360.0,0.19765295]
[1757275654418,0.39405,111370.0,111360.0,0.19765295]
[1757275654614,0.39405,111370.0,111360.0,0.0211]
[1757275655418,0.59170295,111370.0,111360.0,0.0211]
[1757275656421,0.59170295,111370.0,111350.0,0.29157524]
[1757275656622,1.03383295,111360.0,111350.0,0.31267524]
[1757275656825,1.10468074,111360.0,111350.0,0.31257524]
[1757275657421,1.03383295,111360.0,111350.0,0.31257524]
[1757275657922,1.05539845,111360.0,111350.0,0.31257524]
[1757275661925,1.12592313,111360.0,111350.0,0.31257524]
[1757275664427,1.12592313,111360.0,111350.0,0.23224295]
[1757275665025,1.33049608,111360.0,111350.0,0.21885295]
[1757275665225,1.13284313,111360.0,111350.0,0.21885295]
[1757275666121,1.13284313,111360.0,111350.0,0.0212]
[1757275666421,1.13284313,111360.0,111350.0,0.21885295]
[1757275669228,1.13284313,111360.0,111350.0,0.33154793]
[1757275669526,1.66049608,111360.0,111350.0,0.13389498]
[1757275670326,0.84545608,111360.0,111350.0,0.13389498]
[1757275670528,1.66049608,111360.0,111350.0,0.13389498]
[1757275672630,1.66049608,111360.0,111350.0,0.33154793]
[1757275673730,1.66049608,111360.0,111350.0,0.13389498]
[1757275681134,1.66049608,111360.0,111350.0,0.33154793]
[1757275686643,1.66049608,111360.0,111350.0,0.13389498]
[1757275686836,1.66049608,111360.0,111350.0,0.33154793]
[1757275687035,1.33045608,111360.0,111350.0,0.33154793]
[1757275687230,1.46045608,111360.0,111350.0,0.33154793]
[1757275687436,1.26280313,111360.0,111350.0,0.33154793]
[1757275687934,1.26280313,111360.0,111350.0,0.34552793]
[1757275688135,1.45280313,111360.0,111350.0,0.34552793]
[1757275688438,0.63780313,111360.0,111350.0,0.14787498]
[1757275688635,1.26823018,111360.0,111350.0,0.34552793]
[1757275689041,1.46588313,111360.0,111350.0,0.34552793]
[1757275691247,1.26823018,111360.0,111350.0,0.34552793]
[1757275691445,1.46588313,111360.0,111350.0,0.23283295]
[1757275693247,1.12588313,111360.0,111350.0,0.23283295]
[1757275693545,1.20688313,111360.0,111350.0,0.23283295]
[1757275697150,0.39188313,111360.0,111350.0,0.23283295]
[1757275697350,1.20684313,111360.0,111350.0,0.23283295]
[1757275698155,1.20684313,111360.0,111350.0,0.34552793]
[1757275698548,0.39188313,111360.0,111350.0,0.34552793]
[1757275698744,1.20684313,111360.0,111350.0,0.34552793]
[1757275699352,1.20684313,111360.0,111350.0,0.23283295]
[1757275700353,1.20684313,111360.0,111350.0,0.03518]
[1757275700354,1.20686542,111360.0,111350.0,0.03518]
[1757275700555,1.00919018,111360.0,111350.0,0.03518]
[1757275700752,1.20686542,111360.0,111350.0,0.03518]
[1757275700951,1.20686542,111360.0,111350.0,0.14787498]
[1757275702655,0.39190542,111360.0,111350.0,0.14787498]
[1757275702954,1.20686542,111360.0,111350.0,0.14787498]
[1757275705863,1.20682542,111360.0,111350.0,0.14787498]
[1757275709366,1.20682542,111360.0,111350.0,0.03518]
[1757275711173,0.39190542,111360.0,111350.0,0.03518]
[1757275711374,1.20678542,111360.0,111350.0,0.03518]
[1757275713871,1.43678542,111360.0,111350.0,0.03518]
[1757275715277,1.24678542,111360.0,111350.0,0.03518]
[1757275719178,1.24678542,111360.0,111350.0,0.14787498]
[1757275723881,1.24670542,111360.0,111350.0,0.14787498]
[1757275726286,0.43190542,111360.0,111350.0,0.14787498]
[1757275726477,1.24670542,111360.0,111350.0,0.14787498]
[1757275727978,1.04903018,111360.0,111350.0,0.14787498]
[1757275730487,1.24670542,111360.0,111350.0,0.14787498]
[1757275730889,0.43190542,111360.0,111350.0,0.14787498]
[1757275731078,1.14690542,111360.0,111350.0,0.14787498]
[1757275733288,0.94923018,111360.0,111350.0,0.14787498]
[1757275733590,0.94923018,111360.0,111350.0,0.03518]
[1757275733991,0.94923018,111360.0,111350.0,0.14799908]
[1757275734492,0.94923018,111360.0,111350.0,0.03518]
[1757275736192,1.14690542,111360.0,111350.0,0.03518]
[1757275736893,1.14690542,111360.0,111350.0,0.14799907]
[1757275741095,1.14690542,111360.0,111350.0,0.22858406]
[1757275741395,1.14690542,111360.0,111350.0,0.11576499]
[1757275746496,0.94923018,111360.0,111350.0,0.11576499]
[1757275746898,0.95615018,111360.0,111350.0,0.11576499]
[1757275747901,1.15382542,111360.0,111350.0,0.11576499]
[1757275748102,1.15382542,111360.0,111350.0,0.10178499]
[1757275750806,1.13382542,111360.0,111350.0,0.10178499]
[1757275751209,1.13382542,111360.0,111350.0,0.13401907]
[1757275751604,1.37382542,111360.0,111350.0,0.13401907]
[1757275759112,0.65882542,111360.0,111350.0,0.13401907]
[1757275759314,1.47334542,111360.0,111350.0,0.13401907]
[1757275762115,1.47334542,111360.0,111350.0,0.0212]
[1757275762316,1.13334634,111360.0,111350.0,0.23277616]
[1757275767127,1.13334634,111360.0,111350.0,0.0351]
[1757275767321,1.13334634,111360.0,111350.0,0.23277616]
[1757275768929,1.29334634,111360.0,111350.0,0.23277616]
[1757275770529,1.4910225,111360.0,111350.0,0.23277616]
[1757275770730,1.4909425,111360.0,111350.0,0.23277616]
[1757275771630,1.29326634,111360.0,111350.0,0.23277616]
[1757275772528,1.29326634,111360.0,111350.0,0.0351]
[1757275772729,1.29326634,111360.0,111350.0,0.23277616]
[1757275779437,1.29326634,111360.0,111350.0,0.13401907]
[1757275779834,1.29326634,111360.0,111350.0,0.33169523]
[1757275780037,1.4909425,111360.0,111350.0,0.13401907]
[1757275780237,1.4909425,111360.0,111350.0,0.11291907]
[1757275780841,1.7109425,111360.0,111350.0,0.11291907]
[1757275782242,1.7109425,111360.0,111350.0,0.0001]
[1757275783440,1.7109425,111360.0,111350.0,0.11291907]
[1757275783642,1.7107825,111360.0,111350.0,0.11291907]
[1757275786843,1.7107825,111360.0,111350.0,0.0001]
[1757275787440,1.7107825,111360.0,111350.0,0.08068452]
[1757275788141,0.8965025,111360.0,111350.0,0.08068452]
[1757275788345,1.7107425,111360.0,111350.0,0.08068452]
[1757275788943,0.8965025,111360.0,111350.0,0.08068452]
[1757275789151,1.7107425,111360.0,111350.0,0.08068452]
[1757275789447,1.7107425,111360.0,111350.0,0.0001]
[1757275789647,0.8965025,111360.0,111350.0,0.0001]
[1757275789948,1.7107425,111360.0,111350.0,0.08066296]
[1757275797152,0.8965025,111360.0,111350.0,0.08066296]
[1757275797351,1.7107025,111360.0,111350.0,0.08066296]
[1757275797752,0.8965025,111360.0,111350.0,0.08066296]
[1757275797952,1.7107025,111360.0,111350.0,0.08066296]
[1757275799055,1.7107025,111360.0,111350.0,0.0001]
[1757275800651,1.7107025,111360.0,111350.0,0.08066296]
[1757275820167,1.31535018,111360.0,111350.0,0.08066296]
[1757275820373,1.7107025,111360.0,111350.0,0.08066296]
[1757275824277,1.51306596,111360.0,111350.0,0.08066296]
[1757275828079,1.71078174,111360.0,111350.0,0.08066296]
[1757275829283,1.71078174,111360.0,111350.0,0.0001]
[1757275829885,1.71078174,111360.0,111350.0,0.11291907]
[1757275830685,1.71078174,111360.0,111350.0,0.0001]
[1757275830887,1.71078174,111360.0,111350.0,0.08073814]
[1757275833486,1.71050174,111360.0,111350.0,0.08073814]
[1757275836192,1.71050174,111360.0,111350.0,0.06963328]
[1757275836390,0.00788,111350.0,111340.0,0.0001]
[1757275836594,0.02955,111340.0,111330.0,0.02343]
[1757275836892,1.30114578,111340.0,111330.0,0.13614907]
[1757275837194,1.30114578,111340.0,111330.0,0.02333]
[1757275837496,1.30114578,111340.0,111330.0,0.13614907]
[1757275838694,1.30114578,111340.0,111330.0,0.02333]
[1757275838996,1.30114578,111340.0,111330.0,0.02933]
[1757275839595,1.30114578,111340.0,111330.0,0.14224391]
[1757275843297,0.48726578,111340.0,111330.0,0.14224391]
[1757275843597,1.30110578,111340.0,111330.0,0.14224391]
[1757275845605,1.30110578,111340.0,111330.0,0.11891391]
[1757275846497,1.30110578,111340.0,111330.0,0.14224391]
[1757275847401,1.30110578,111340.0,111330.0,0.11891391]
[1757275851306,1.30210578,111340.0,111330.0,0.11291391]
[1757275852104,1.30210578,111340.0,111330.0,0.11991391]
[1757275852297,1.30210578,111340.0,111330.0,0.007]
[1757275852604,1.30410578,111340.0,111320.0,0.1449536]
[1757275852900,0.22034578,111330.0,111320.0,0.1682836]
[1757275853103,0.22034578,111330.0,111320.0,0.1681836]
[1757275853604,1.03414578,111330.0,111320.0,0.1681836]
[1757275855804,1.03514578,111330.0,111320.0,0.1681836]
[1757275856006,1.03514578,111330.0,111320.0,0.1682836]
[1757275857400,0.83743,111330.0,111320.0,0.36599938]
[1757275857607,0.83743,111330.0,111320.0,0.1682836]
[1757275857801,0.83743,111330.0,111320.0,0.36599938]
[1757275857802,0.02363,111330.0,111320.0,0.36599938]
[1757275858108,0.83743,111330.0,111320.0,0.36599938]
[1757275858705,0.02363,111330.0,111320.0,0.1682836]
[1757275858900,0.33599,111330.0,111320.0,0.1682836]
[1757275859605,0.33599,111330.0,111320.0,0.05536969]
[1757275860307,0.02363,111330.0,111320.0,0.05536969]
[1757275861513,0.22134578,111330.0,111320.0,0.05536969]
[1757275873615,0.02363,111330.0,111320.0,0.05536969]
[1757275873812,0.22134578,111330.0,111320.0,0.05536969]
[1757275874204,0.23419578,111330.0,111320.0,0.04249969]
[1757275876014,0.23419578,111330.0,111320.0,0.02443]
[1757275876414,0.23419578,111330.0,111320.0,0.0011]
[1757275877017,0.23419578,111330.0,111320.0,0.11410322]
[1757275881022,0.43191156,111330.0,111320.0,0.11410322]
[1757275881213,0.81191156,111330.0,111320.0,0.11410322]
[1757275882823,0.61419578,111330.0,111320.0,0.11410322]
[1757275886424,0.81211864,111330.0,111320.0,0.11410322]
[1757275888630,0.81211864,111330.0,111320.0,0.13589322]
[1757275893134,0.41648,111330.0,111320.0,0.11410322]
[1757275893433,0.81211864,111330.0,111320.0,0.11410322]
[1757275894036,0.81211864,111330.0,111320.0,0.13521322]
[1757275896245,0.81211864,111330.0,111320.0,0.11410322]
[1757275897142,0.81211864,111330.0,111320.0,0.13521322]
[1757275905749,1.44571864,111330.0,111320.0,0.13521322]
[1757275906446,1.44571864,111330.0,111320.0,0.11410322]
[1757275906745,0.22363,111330.0,111320.0,0.14794322]
[1757275906949,0.97928932,111330.0,111320.0,0.14794322]
[1757275909254,0.97928932,111330.0,111320.0,0.03494]
[1757275915253,0.77928932,111330.0,111320.0,0.03494]
[1757275918352,0.02102,111280.0,111270.0,0.02111]
[1757275918654,0.02102,111280.0,111260.0,0.14700863]
[1757275918655,0.03383,111270.0,111260.0,0.14700863]
[1757275918850,0.51521569,111270.0,111260.0,0.13427863]
[1757275919055,0.44367074,111270.0,111260.0,0.02111]
[1757275920458,0.44367074,111270.0,111250.0,0.03103023]
[1757275920459,0.03124,111260.0,111250.0,0.02111]
[1757275920659,1.24243864,111260.0,111250.0,0.03511648]
[1757275921560,0.42687864,111260.0,111250.0,0.03511648]
[1757275921755,1.24251864,111260.0,111250.0,0.03511648]
[1757275922462,1.24351864,111260.0,111250.0,0.03511648]
[1757275923254,0.02202,111260.0,111250.0,0.51458478]
[1757275923556,0.001,111260.0,111250.0,0.5904593]
[1757275923765,0.001,111260.0,111250.0,0.5005783]
[1757275923965,0.001,111260.0,111250.0,0.30275898]
[1757275924459,0.001,111260.0,111250.0,0.5005783]
[1757275924460,0.02353,111260.0,111250.0,0.5005783]
[1757275924660,0.22134932,111260.0,111250.0,0.30275898]
[1757275924859,0.22134932,111260.0,111250.0,0.5005783]
[1757275925461,0.22034932,111260.0,111250.0,0.5095783]
[1757275925661,0.22034932,111260.0,111250.0,0.5165783]
[1757275926156,0.22034932,111260.0,111250.0,0.5245783]
[1757275927969,0.22034932,111260.0,111250.0,0.5175783]
[1757275928266,0.22034932,111260.0,111250.0,0.33275898]
[1757275928467,0.22034932,111260.0,111250.0,0.5305783]
[1757275931769,0.30622322,111270.0,111260.0,0.03636]
[1757275931969,0.1084039,111270.0,111260.0,0.23417932]
[1757275932168,0.30622322,111270.0,111260.0,0.23417932]
[1757275932468,0.30622322,111270.0,111260.0,0.03636]
[1757275932771,0.30622322,111270.0,111260.0,0.04436]
[1757275933169,0.1084039,111270.0,111260.0,0.04436]
[1757275933463,0.30622322,111270.0,111260.0,0.04436]
[1757275934061,0.30622322,111270.0,111260.0,0.05036]
[1757275936970,0.51426254,111270.0,111260.0,0.03689]
[1757275937168,0.31644322,111270.0,111260.0,0.03689]
[1757275937370,0.31644322,111270.0,111260.0,0.04138]
[1757275937970,0.30622322,111270.0,111260.0,0.05485]
[1757275938373,0.30622322,111270.0,111260.0,0.04885]
[1757275938773,0.30722322,111270.0,111260.0,0.04085]
[1757275939475,0.30722322,111270.0,111260.0,0.23866932]
[1757275939769,0.30722322,111270.0,111260.0,0.52636134]
[1757275939770,0.0726718,111270.0,111260.0,0.52636134]
[1757275939974,0.0726718,111270.0,111260.0,0.43648864]
[1757275941078,0.27049112,111270.0,111260.0,0.43648864]
[1757275941269,0.0726718,111270.0,111260.0,0.43648864]
[1757275941464,0.0726718,111270.0,111260.0,0.44148864]
[1757275942177,0.0716718,111270.0,111260.0,0.04685]
[1757275942377,0.0716718,111270.0,111260.0,0.45048864]
[1757275944275,0.0716718,111270.0,111260.0,0.25266932]
[1757275944680,0.29202112,111270.0,111260.0,0.45048864]
[1757275944979,0.29202112,111270.0,111260.0,0.25266932]
[1757275946271,0.0942018,111270.0,111260.0,0.05485]
[1757275947982,0.29216477,111270.0,111260.0,0.05485]
[1757275950884,0.75034774,111270.0,111260.0,0.04138]
[1757275951082,0.75034774,111270.0,111260.0,0.01849]
[1757275952084,0.75034774,111270.0,111260.0,0.01249]
[1757275952286,0.75234774,111270.0,111260.0,0.00449]
[1757275952487,0.75234774,111270.0,111260.0,0.02738]
[1757275952688,1.57390774,111270.0,111260.0,0.00449]
[1757275953288,1.57390774,111270.0,111260.0,0.08526223]
[1757275953686,1.57490774,111270.0,111260.0,0.08526223]
[1757275954094,1.57490774,111270.0,111260.0,0.00449]
[1757275956093,0.75334774,111270.0,111260.0,0.00449]
[1757275956294,1.57482774,111270.0,111260.0,0.00449]
[1757275959308,1.32482774,111270.0,111260.0,0.08526223]
[1757275960308,1.57482774,111270.0,111260.0,0.08526223]
[1757275960505,1.57482774,111270.0,111260.0,0.00449]
[1757275960808,1.94482774,111270.0,111260.0,0.00449]
[1757275967412,0.01271,111260.0,111250.0,0.09905121]
[1757275967718,0.23247297,111260.0,111250.0,0.03217148]
[1757275968013,0.47247297,111260.0,111250.0,0.03217148]
[1757275968412,0.47247297,111260.0,111250.0,0.01817898]
[1757275969313,0.47347297,111260.0,111250.0,0.01817898]
[1757275976418,0.47347297,111260.0,111250.0,0.09895121]
[1757275977919,1.29315297,111260.0,111250.0,0.09895121]
[1757275979613,0.47347297,111260.0,111250.0,0.09895121]
[1757275979819,1.29299297,111260.0,111250.0,0.09895121]
[1757275980318,1.29291297,111260.0,111250.0,0.09895121]
[1757275981020,1.29291297,111260.0,111250.0,0.01817898]
[1757275984424,1.29367297,111260.0,111250.0,0.01817898]
[1757275989328,1.29367297,111260.0,111250.0,0.09895121]
[1757275992134,1.29367297,111260.0,111250.0,0.01817898]
[1757275992832,1.29367297,111260.0,111250.0,0.13062031]
[1757275994635,1.29283297,111260.0,111250.0,0.13062031]
[1757276001543,1.49079594,111260.0,111250.0,0.13062031]
[1757276001949,1.49079594,111260.0,111250.0,0.21156888]
[1757276002136,1.49079594,111260.0,111250.0,0.09912755]
[1757276008444,1.68926054,111260.0,111250.0,0.09912755]
[1757276014352,1.68926054,111260.0,111250.0,0.10361755]
[1757276014554,1.68926054,111260.0,111250.0,0.09391636]
[1757276029165,1.68926054,111260.0,111250.0,0.01296779]
[1757276029865,0.86990054,111260.0,111250.0,0.01296779]
[1757276030065,1.69138054,111260.0,111250.0,0.01296779]
[1757276031365,1.69138054,111260.0,111250.0,0.09391636]
[1757276031568,1.69138054,111260.0,111250.0,0.01296779]
[1757276032669,1.69122054,111260.0,111250.0,0.01296779]
[1757276034265,0.86990054,111260.0,111250.0,0.01296779]
[1757276034570,1.69106054,111260.0,111250.0,0.11623636]
[1757276034770,0.86990054,111260.0,111250.0,0.11623636]
[1757276035073,1.69106054,111260.0,111250.0,0.11623636]
[1757276036970,1.69106054,111260.0,111250.0,0.09391636]
[1757276037372,1.69106054,111260.0,111250.0,0.11623636]
[1757276041082,1.69106054,111260.0,111250.0,0.09391636]
[1757276043582,1.69106054,111260.0,111250.0,0.11623636]
[1757276043883,1.69106054,111260.0,111250.0,0.09391636]
[1757276045084,1.69106054,111260.0,111250.0,0.08543857]
[1757276047984,1.69106054,111260.0,111250.0,0.10773857]
[1757276048683,1.69106054,111260.0,111250.0,0.08543857]
[1757276059691,1.09667,111260.0,111250.0,0.08543857]
[1757276059991,1.69106054,111260.0,111250.0,0.08543857]
[1757276067397,1.69106054,111260.0,111250.0,0.10773857]
[1757276067693,1.69106054,111260.0,111250.0,0.08543857]
[1757276070298,1.2947694,111260.0,111250.0,0.08543857]
[1757276079406,1.2947694,111260.0,111250.0,0.00449]
[1757276086006,1.2947694,111260.0,111250.0,0.08543857]
[1757276088110,1.2947694,111260.0,111250.0,0.10797857]
[1757276088407,1.2947694,111260.0,111250.0,0.08543857]
[1757276091705,1.2947694,111260.0,111250.0,0.10797857]
[1757276092208,1.2947694,111260.0,111250.0,0.08543857]
[1757276104719,1.2947694,111260.0,111250.0,0.10797857]
[1757276105316,0.27551,111260.0,111250.0,0.10797857]
[1757276105616,1.2776194,111260.0,111250.0,0.29086]
[1757276107820,1.2776194,111260.0,111250.0,0.37180857]
[1757276109621,1.2904294,111260.0,111250.0,0.35797857]
[1757276112121,1.2776194,111260.0,111250.0,0.37180857]
[1757276112529,1.2904294,111260.0,111250.0,0.37180857]
[1757276113228,1.2904294,111260.0,111250.0,0.35797857]
[1757276116945,1.2904294,111260.0,111250.0,0.37180857]
[1757276117546,1.07952,111260.0,111250.0,0.37180857]
[1757276117738,1.2776194,111260.0,111250.0,0.37180857]
[1757276119641,0.4608994,111260.0,111250.0,0.37180857]
[1757276119838,1.2775794,111260.0,111250.0,0.37180857]
[1757276126553,1.07948,111260.0,111250.0,0.37180857]
[1757276126851,1.2775394,111260.0,111250.0,0.37180857]
[1757276128851,1.2775394,111260.0,111250.0,0.29086]
[1757276129051,1.07944,111260.0,111250.0,0.37180857]
[1757276129252,1.2775394,111260.0,111250.0,0.37180857]
[1757276130351,1.47555768,111260.0,111250.0,0.37180857]
[1757276133558,1.07944,111260.0,111250.0,0.37180857]
[1757276133759,1.47555768,111260.0,111250.0,0.37180857]
[1757276134358,1.47555768,111260.0,111250.0,0.29086]
[1757276139265,1.47555768,111260.0,111250.0,0.04086]
[1757276139460,1.47555768,111260.0,111250.0,0.15330133]
[1757276144070,1.48836768,111260.0,111250.0,0.15330133]
[1757276157977,1.47539768,111260.0,111250.0,0.15330133]
[1757276169288,1.47539768,111260.0,111250.0,0.12176434]
[1757276169485,0.65891768,111260.0,111250.0,0.12176434]
[1757276169785,1.27725884,111260.0,111250.0,0.23891884]
[1757276170178,1.0792,111260.0,111250.0,0.56981859]
[1757276170379,1.27725884,111260.0,111250.0,0.56981859]
[1757276170785,1.27725884,111260.0,111250.0,0.48891884]
[1757276174689,0.46085884,111260.0,111250.0,0.48891884]
[1757276174890,0.81736,111260.0,111250.0,0.48891884]
[1757276175089,0.81736,111260.0,111250.0,0.60136017]
[1757276175986,0.81736,111260.0,111250.0,0.60636017]
[1757276176792,0.001,111260.0,111250.0,0.60636017]
[1757276177093,0.001,111260.0,111250.0,0.40830133]
[1757276177294,0.001,111260.0,111250.0,0.60636017]
[1757276177990,1.10726064,111270.0,111260.0,0.03551]
[1757276178192,1.10716064,111270.0,111260.0,0.31437179]
[1757276178587,1.10716064,111270.0,111260.0,0.11631295]
[1757276179091,1.13716064,111270.0,111260.0,0.11631295]
[1757276179291,1.13816064,111270.0,111260.0,0.03551]
[1757276179494,1.13916064,111270.0,111260.0,0.15244133]
[1757276188703,0.9411018,111270.0,111260.0,0.35050017]
[1757276189001,1.13916064,111270.0,111260.0,0.35050017]
[1757276190304,1.13910679,111270.0,111260.0,0.15244133]
[1757276191106,1.13910679,111270.0,111260.0,0.04]
[1757276191507,1.13910679,111270.0,111260.0,0.15244133]
[1757276194910,0.9411018,111270.0,111260.0,0.15244133]
[1757276195207,1.13910679,111270.0,111260.0,0.15244133]
[1757276196005,0.9411018,111270.0,111260.0,0.15244133]
[1757276196205,1.13910679,111270.0,111260.0,0.15244133]
[1757276201320,0.9411018,111270.0,111260.0,0.15244133]
[1757276201518,1.13910679,111270.0,111260.0,0.15244133]
[1757276206924,0.9408218,111270.0,111260.0,0.15244133]
[1757276207125,1.13882679,111270.0,111260.0,0.15244133]
[1757276207626,1.10882679,111270.0,111260.0,0.15244133]
[1757276212930,1.10782679,111270.0,111260.0,0.15244133]
[1757276213229,1.10982679,111270.0,111260.0,0.15244133]
[1757276224032,0.29378679,111270.0,111260.0,0.15244133]
[1757276224231,0.94446679,111270.0,111260.0,0.15244133]
[1757276225234,0.29378679,111270.0,111260.0,0.15244133]
[1757276225533,1.10962679,111270.0,111260.0,0.15244133]
[1757276225732,0.29378679,111270.0,111260.0,0.15244133]
[1757276225923,0.95650679,111270.0,111260.0,0.15244133]
[1757276228336,0.98650679,111270.0,111260.0,0.15244133]
[1757276228633,0.95650679,111270.0,111260.0,0.15244133]
[1757276231430,0.95650679,111270.0,111260.0,0.60044632]
[1757276231431,0.0957818,111270.0,111260.0,0.60044632]
[1757276231635,0.0746718,111270.0,111260.0,0.48800499]